bitfinex-derivatives/quotes_ETHF0:USTF0_20250830
["timestamp","ask_amount","ask_price","bid_price","bid_amount"]
[1756518493751,0.0028,4319.6,4319.5,0.5039]
[1756518494758,0.0017,4319.6,4319.5,0.5039]
[1756518495264,0.0011,4320.3,4319.6,0.3076]
[1756518495463,3.2078,4320.4,4319.6,0.5039]
[1756518495464,0.0017,4319.7,4319.6,0.5039]
[1756518495661,0.0017,4319.7,4319.1,0.3076]
[1756518495867,0.0028,4319.3,4319.2,0.5456]
[1756518496363,0.0017,4318.5,4318.4,0.3076]
[1756518496666,0.0028,4318.5,4318.4,0.3076]
[1756518497464,0.0011,4319.1,4319.0,0.1963]
[1756518497766,0.0011,4319.0,4318.1,0.3076]
[1756518498558,3.2078,4319.3,4318.1,0.5456]
[1756518498971,3.2078,4318.8,4318.2,0.3076]
[1756518499163,3.2078,4318.8,4318.7,0.5039]
[1756518499359,3.2078,4319.3,4318.7,0.5039]
[1756518500468,3.2078,4319.3,4318.7,0.1963]
[1756518500770,3.2089,4319.3,4319.2,0.5039]
[1756518501565,3.2078,4319.3,4319.2,0.5039]
[1756518501959,3.2089,4319.3,4319.2,0.5039]
[1756518504072,3.2078,4320.0,4319.2,0.1963]
[1756518504274,0.0011,4319.9,4319.8,0.5039]
[1756518504768,0.0011,4319.9,4318.9,0.3076]
[1756518505876,0.0011,4319.0,4318.9,0.5039]
[1756518508177,3.2078,4319.5,4319.0,0.3076]
[1756518508478,3.2089,4319.5,4319.4,0.5039]
[1756518512280,3.2078,4319.5,4319.4,0.5039]
[1756518514673,3.2089,4319.5,4319.4,0.5039]
[1756518516478,3.2089,4319.5,4318.4,0.133]
[1756518516674,3.2089,4319.5,4318.6,0.3076]
[1756518518681,3.2088,4318.8,4318.7,0.4837]
[1756518521180,7.2088,4318.8,4317.9,0.2891]
[1756518521378,3.2088,4318.8,4317.9,0.2891]
[1756518521984,0.001,4318.0,4317.9,0.1946]
[1756518522283,0.001,4318.0,4317.9,0.4837]
[1756518524580,3.2078,4318.3,4318.0,0.2891]
[1756518524889,3.2088,4318.3,4318.2,0.4837]
[1756518526481,3.2088,4318.3,4317.4,0.2891]
[1756518526680,3.2088,4318.3,4317.5,0.2891]
[1756518527295,3.2088,4318.3,4318.2,0.1946]
[1756518527483,3.2088,4318.3,4318.2,0.4837]
[1756518527787,3.2088,4318.3,4317.4,0.2891]
[1756518531083,0.237,4318.2,4317.4,0.2891]
[1756518531290,0.238,4318.2,4318.1,0.4837]
[1756518531484,0.001,4318.2,4318.1,0.4837]
[1756518532387,3.2078,4318.3,4318.2,0.4837]
[1756518533192,3.2088,4318.3,4318.2,0.4837]
[1756518534390,3.2088,4318.3,4317.4,0.5271]
[1756518534594,3.2088,4318.3,4317.5,0.2891]
[1756518534788,3.2088,4318.3,4318.2,0.4837]
[1756518534988,3.2078,4318.3,4318.2,0.4837]
[1756518535391,3.2088,4318.3,4318.2,0.4837]
[1756518535584,3.2078,4318.8,4318.2,0.1946]
[1756518535790,3.2088,4318.8,4318.7,0.4837]
[1756518536686,3.2078,4318.8,4318.7,0.4837]
[1756518537090,3.2088,4318.8,4318.7,0.4837]
[1756518538697,3.2078,4318.8,4318.7,0.4837]
[1756518539782,0.237,4319.4,4318.7,0.1946]
[1756518539986,0.237,4319.4,4318.8,0.2891]
[1756518540590,0.001,4319.4,4319.3,0.4837]
[1756518540794,3.2078,4319.5,4319.4,0.4837]
[1756518541595,3.2088,4320.5,4320.4,0.4837]
[1756518541790,3.2088,4320.5,4319.5,0.2891]
[1756518542200,3.2088,4320.5,4319.6,0.2891]
[1756518542390,0.001,4319.3,4319.0,0.238]
[1756518542589,0.001,4319.3,4319.1,0.2891]
[1756518542892,0.001,4319.3,4318.6,0.238]
[1756518543090,0.001,4319.3,4319.2,0.1946]
[1756518543290,0.001,4319.3,4318.9,0.2891]
[1756518543291,0.001,4319.3,4318.6,0.238]
[1756518543492,0.001,4319.3,4319.2,0.1946]
[1756518543693,3.2078,4320.0,4319.9,0.4837]
[1756518544295,3.2088,4320.0,4319.9,0.4837]
[1756518544692,0.001,4320.0,4319.9,0.4837]
[1756518545397,3.2078,4320.6,4319.9,0.4837]
[1756518545698,0.001,4320.0,4319.9,0.4837]
[1756518546195,0.001,4320.0,4319.7,0.238]
[1756518546493,0.001,4320.0,4319.7,0.5271]
[1756518546698,0.001,4320.0,4319.8,0.2891]
[1756518546990,0.001,4320.0,4319.7,0.238]
[1756518547196,0.001,4320.0,4319.8,0.3074]
[1756518547596,0.001,4320.0,4319.9,0.2066]
[1756518547800,0.001,4320.0,4319.9,0.514]
[1756518548188,3.2078,4320.1,4319.9,0.514]
[1756518548393,3.2078,4320.1,4320.0,0.514]
[1756518549096,0.238,4320.6,4319.7,0.238]
[1756518549298,3.4458,4320.7,4319.8,0.3074]
[1756518549598,3.2078,4320.7,4320.6,0.2066]
[1756518549794,3.2078,4320.7,4319.8,0.3074]
[1756518549999,3.2078,4320.7,4319.8,0.514]
[1756518551399,3.2078,4320.7,4319.9,0.3074]
[1756518551900,3.2078,4320.7,4319.9,0.514]
[1756518552298,3.2078,4320.7,4319.9,0.2066]
[1756518552499,3.2078,4320.7,4320.0,0.3074]
[1756518552896,3.2078,4320.7,4320.6,0.514]
[1756518553704,3.2078,4320.7,4319.4,0.3074]
[1756518553905,3.2078,4320.7,4319.5,0.3074]
[1756518554602,3.4458,4320.7,4320.6,0.514]
[1756518555404,7.4458,4320.7,4319.6,0.3074]
[1756518555606,3.4458,4320.7,4319.6,0.3074]
[1756518556808,3.4458,4320.7,4319.6,0.514]
[1756518557006,3.2078,4320.2,4319.6,0.514]
[1756518558211,33.55136952,4321.3,4320.2,0.3074]
[1756518558212,3.4468,4320.8,4320.2,0.3074]
[1756518559711,3.2078,4320.8,4320.2,0.3074]
[1756518559911,3.2078,4320.8,4320.7,0.514]
[1756518561706,0.18936952,4321.3,4320.7,0.514]
[1756518561914,3.2078,4321.4,4321.3,0.514]
[1756518562213,3.2078,4321.4,4320.5,0.514]
[1756518563508,3.2078,4320.9,4320.5,0.514]
[1756518566012,3.2078,4320.9,4320.6,0.2066]
[1756518566211,3.2078,4320.9,4320.7,0.3074]
[1756518567210,3.2078,4320.9,4320.1,0.514]
[1756518567714,3.2078,4320.9,4320.2,0.3074]
[1756518567914,3.2078,4320.9,4320.8,0.514]
[1756518568114,3.39786309,4320.9,4320.8,0.514]
[1756518569314,3.2078,4320.9,4320.8,0.514]
[1756518569516,3.39803257,4320.9,4320.8,0.514]
[1756518569915,0.19023257,4320.9,4320.8,0.514]
[1756518572525,4.42167257,4320.9,4319.5,0.3074]
[1756518572823,0.1479,4320.3,4319.5,0.1592]
[1756518573009,0.1479,4320.1,4319.5,0.1592]
[1756518573316,0.1479,4319.9,4319.3,3.4468]
[1756518573521,0.3357,4319.9,4319.8,0.2066]
[1756518573818,0.52585696,4319.9,4319.8,0.2066]
[1756518574719,0.52585696,4319.9,4319.8,0.514]
[1756518574920,0.37795696,4319.9,4319.8,0.514]
[1756518575223,0.19015696,4319.9,4319.8,0.514]
[1756518575921,0.37795696,4319.9,4319.8,0.514]
[1756518576219,0.52585696,4319.9,4319.8,0.514]
[1756518576817,0.19015696,4319.9,4319.8,0.514]
[1756518578327,0.52775696,4319.9,4319.8,0.514]
[1756518581124,0.19015696,4319.9,4319.8,4.514]
[1756518581431,0.1897,4321.1,4320.7,0.3063]
[1756518581732,0.1897,4320.4,4320.3,0.4093]
[1756518581930,0.3376,4320.4,4320.3,0.5016]
[1756518582228,0.1479,4320.4,4319.9,0.3063]
[1756518582524,0.3376,4320.4,4320.3,0.5016]
[1756518583430,0.1897,4320.4,4320.3,0.5016]
[1756518584424,3.2078,4320.6,4320.2,0.1953]
[1756518584425,0.1479,4320.3,4320.2,0.1953]
[1756518584727,0.1479,4320.5,4320.3,0.3063]
[1756518585031,3.2078,4320.6,4320.5,0.5016]
[1756518585529,0.1897,4320.6,4320.5,0.5016]
[1756518586123,0.1897,4320.6,4319.6,3.2078]
[1756518586324,0.1897,4320.1,4320.0,0.5016]
[1756518587029,3.2078,4320.3,4319.3,0.3063]
[1756518587227,0.1479,4320.2,4319.3,0.3063]
[1756518587427,0.23149001,4320.2,4319.3,0.3063]
[1756518587628,0.1479,4320.1,4319.3,0.3063]
[1756518588226,0.1479,4320.2,4319.3,0.3063]
[1756518588423,0.1479,4320.1,4319.3,0.3063]
[1756518588824,0.1479,4320.2,4319.3,0.3063]
[1756518589030,0.3376,4319.3,4319.2,0.5473]
[1756518589434,0.3376,4319.3,4319.2,0.3063]
[1756518589733,0.1479,4319.2,4318.6,0.3063]
[1756518589933,0.3376,4318.7,4318.6,0.5016]
[1756518590234,0.3376,4318.7,4318.1,0.3063]
[1756518590434,0.1479,4318.6,4318.1,0.3063]
[1756518590637,0.3376,4318.2,4318.1,0.5016]
[1756518591527,3.2078,4318.8,4317.8,0.241]
[1756518591727,3.2078,4318.8,4317.9,0.3063]
[1756518592234,0.1479,4318.7,4317.9,0.3063]
[1756518593728,0.3376,4318.7,4318.6,0.1953]
[1756518593930,0.3376,4318.7,4318.6,0.5016]
[1756518597437,0.1897,4318.7,4318.6,0.5016]
[1756518598239,0.3376,4318.7,4318.6,0.5016]
[1756518598441,0.75432,4318.7,4318.6,0.5016]
[1756518598740,0.60642,4318.7,4318.6,0.5016]
[1756518598943,0.41672,4318.7,4318.6,0.5016]
[1756518600342,0.75432,4318.7,4318.6,0.5016]
[1756518602548,0.75432,4318.7,4318.6,0.1953]
[1756518602845,0.41682,4317.7,4317.6,3.7094]
[1756518604645,0.41682,4317.7,4317.6,7.7094]
[1756518604849,3.4478,4318.8,4317.7,0.3063]
[1756518605046,3.7082,4318.8,4318.7,0.5016]
[1756518606249,0.3107,4319.2,4318.7,0.1953]
[1756518606449,0.1897,4319.2,4319.1,0.5016]
[1756518606854,0.4727,4319.2,4319.1,0.5016]
[1756518607859,3.39201384,4319.5,4319.1,0.5016]
[1756518608053,3.4021,4319.5,4319.4,0.4894]
[1756518608249,3.6851,4319.5,4319.4,0.4894]
[1756518608652,3.2078,4319.5,4319.4,0.4894]
[1756518609165,3.2078,4319.5,4319.4,0.2918]
[1756518609166,3.6851,4319.5,4319.4,0.2918]
[1756518609457,0.4773,4319.4,4319.3,0.4894]
[1756518611852,3.4908,4320.2,4319.8,0.1976]
[1756518612053,0.1943,4319.9,4319.8,0.1976]
[1756518612449,0.1943,4319.9,4319.8,0.4894]
[1756518612757,3.2078,4320.2,4320.1,0.1976]
[1756518612958,3.4021,4320.2,4320.1,0.4894]
[1756518613155,3.6851,4320.2,4318.8,0.24]
[1756518613356,0.283,4320.1,4319.0,0.2918]
[1756518613955,0.283,4320.1,4319.0,0.52331]
[1756518614155,0.283,4320.1,4319.1,0.2918]
[1756518615162,0.4773,4320.1,4320.0,0.4894]
[1756518615361,3.2078,4320.2,4320.1,0.4894]
[1756518616067,3.6851,4320.2,4320.1,0.4894]
[1756518616564,3.4021,4320.2,4320.1,0.4894]
[1756518617160,3.4021,4320.2,4319.2,3.2078]
[1756518617161,0.1943,4319.4,4319.3,0.4894]
[1756518617367,0.4773,4319.8,4319.7,0.1976]
[1756518617564,0.4773,4319.8,4319.7,0.4894]
[1756518618563,0.1943,4319.8,4319.7,0.4894]
[1756518620771,0.283,4320.6,4320.1,0.2918]
[1756518621069,0.283,4320.6,4319.4,0.2918]
[1756518623171,0.283,4320.6,4319.5,0.24]
[1756518623773,0.283,4320.6,4319.4,0.2918]
[1756518623968,0.283,4320.6,4319.6,0.2918]
[1756518629973,0.4773,4320.6,4319.5,0.24]
[1756518630170,0.4773,4320.6,4319.6,0.2918]
[1756518632971,0.1943,4319.4,4319.3,0.4894]
[1756518633173,0.4773,4319.4,4319.3,0.4894]
[1756518633971,0.1943,4319.4,4319.3,0.4894]
[1756518634174,3.2078,4320.1,4319.9,0.4894]
[1756518634175,0.4773,4320.0,4319.9,0.4894]
[1756518634676,0.4773,4320.0,4319.6,0.2918]
[1756518634875,0.4773,4320.0,4319.0,0.23151]
[1756518635174,0.4773,4320.0,4319.1,0.2918]
[1756518635473,0.4773,4320.0,4319.9,0.4894]
[1756518637473,0.1943,4320.0,4319.2,0.2912]
[1756518637671,0.4974,4319.3,4319.2,0.4973]
[1756518639176,0.4974,4318.7,4318.6,0.4973]
[1756518641878,0.4974,4318.7,4318.6,0.2061]
[1756518642475,0.4974,4318.7,4318.6,0.4973]
[1756518647278,0.1909,4318.7,4317.9,3.2078]
[1756518647475,0.1909,4318.1,4318.0,0.4973]
[1756518647678,0.4974,4318.1,4318.0,0.4973]
[1756518649680,0.4974,4318.5,4318.4,0.2061]
[1756518649879,0.4974,4318.5,4318.4,0.4973]
[1756518652390,0.1909,4318.5,4317.9,0.238]
[1756518652584,0.1909,4318.0,4317.9,0.4441]
[1756518653285,0.1909,4318.0,4317.9,0.7353]
[1756518653486,0.3065,4318.2,4317.9,0.7353]
[1756518653687,0.3065,4318.2,4318.1,0.2061]
[1756518653886,0.4974,4318.2,4318.1,0.2061]
[1756518654190,0.4974,4318.2,4318.1,0.4973]
[1756518654689,0.1909,4318.2,4318.1,0.4973]
[1756518656478,0.3065,4318.5,4318.2,0.2912]
[1756518656679,0.4974,4318.5,4318.4,0.2061]
[1756518656890,0.4974,4318.5,4318.4,0.4973]
[1756518659786,0.4974,4318.5,4318.4,0.2061]
[1756518660194,0.4974,4318.5,4318.1,0.2912]
[1756518660593,0.4974,4318.5,4318.0,0.2912]
[1756518660794,0.4974,4318.5,4318.4,0.4973]
[1756518660990,3.2078,4318.6,4318.4,0.4973]
[1756518661191,3.7052,4318.6,4318.5,0.4973]
[1756518661392,0.3065,4318.9,4318.5,0.4973]
[1756518661585,0.4974,4318.7,4318.6,0.4973]
[1756518662398,0.4974,4318.7,4318.0,0.2912]
[1756518662700,0.4974,4318.1,4318.0,0.4973]
[1756518662991,0.1909,4318.2,4317.6,3.2078]
[1756518663195,0.3065,4318.5,4317.7,0.2912]
[1756518663395,0.1909,4317.8,4317.7,0.4973]
[1756518663691,0.3065,4318.0,4317.7,0.2061]
[1756518663890,0.4974,4318.0,4317.9,0.2061]
[1756518664293,0.4974,4318.0,4317.9,0.4973]
[1756518664490,0.1909,4318.0,4317.9,0.4973]
[1756518664894,0.4974,4318.5,4318.4,0.2061]
[1756518665093,0.4974,4318.5,4318.4,0.4973]
[1756518665697,0.4974,4318.5,4318.4,0.2061]
[1756518666093,0.4974,4318.5,4318.1,0.2912]
[1756518666293,0.4974,4317.8,4317.7,0.7353]
[1756518667193,0.4974,4317.8,4317.7,0.5062]
[1756518667702,0.3112,4318.1,4317.7,0.2061]
[1756518667896,0.5143,4318.1,4318.0,0.4958]
[1756518670301,0.5143,4318.1,4317.1,3.2078]
[1756518670302,0.5143,4318.1,4317.5,0.238]
[1756518670792,0.5143,4318.1,4317.6,0.3001]
[1756518670997,0.5143,4318.1,4317.5,0.238]
[1756518671299,0.5143,4317.6,4317.5,0.7338]
[1756518671696,0.3112,4318.5,4317.6,0.3001]
[1756518671898,1.11690898,4318.4,4318.3,0.4958]
[1756518672396,1.11690898,4318.4,4317.5,0.238]
[1756518672597,0.5143,4318.2,4318.1,0.1957]
[1756518672792,1.11690898,4318.2,4318.1,0.1957]
[1756518673801,0.80570898,4318.2,4317.1,3.2078]
[1756518674003,3.2078,4318.6,4317.2,0.46961]
[1756518674200,0.3112,4318.4,4317.2,0.46961]
[1756518674503,0.3112,4318.2,4317.3,0.3001]
[1756518674699,0.5143,4318.2,4318.1,0.4958]
[1756518674901,1.11675782,4318.2,4318.1,0.4958]
[1756518676105,1.11675782,4318.2,4317.2,0.238]
[1756518676305,0.5143,4318.2,4317.4,0.3001]
[1756518677505,3.4445881,4318.6,4317.1,3.2078]
[1756518677806,0.5143,4317.3,4317.2,0.4958]
[1756518680412,3.2078,4318.1,4317.5,0.1957]
[1756518680612,0.80524638,4318.0,4317.9,0.1957]
[1756518680814,0.80524638,4318.0,4317.9,0.4958]
[1756518681016,0.80524638,4318.0,4317.1,3.2078]
[1756518681215,0.91334638,4317.9,4317.2,0.3001]
[1756518681514,0.3112,4317.7,4317.2,0.3001]
[1756518681716,0.5143,4317.7,4317.6,0.1957]
[1756518681916,0.5143,4317.7,4317.6,0.4958]
[1756518683215,3.4109,4318.1,4318.0,0.1957]
[1756518683522,3.44510603,4318.6,4318.1,0.3001]
[1756518683714,1.11636692,4318.5,4318.4,0.4958]
[1756518683914,0.3112,4318.4,4317.7,0.3001]
[1756518684224,0.5143,4317.8,4317.7,0.7338]
[1756518685520,0.2031,4317.8,4317.7,0.7338]
[1756518685717,0.3112,4318.5,4317.8,0.3001]
[1756518685920,0.80523647,4318.4,4318.3,0.1957]
[1756518686218,0.80523647,4318.4,4318.3,0.4958]
[1756518686418,0.5143,4318.4,4318.3,0.4958]
[1756518687321,3.2078,4318.6,4317.7,0.4337]
[1756518687322,0.41681,4317.8,4317.7,0.4337]
[1756518687520,0.93111,4317.8,4317.7,0.4337]
[1756518687821,0.41681,4317.8,4317.7,0.7338]
[1756518691725,0.41681,4317.8,4317.7,0.4958]
[1756518692026,0.41681,4317.8,4317.7,0.7338]
[1756518692616,0.93111,4317.8,4317.7,0.7338]
[1756518692815,0.5143,4317.8,4317.7,0.4337]
[1756518693027,0.5143,4317.8,4317.7,0.7338]
[1756518693222,0.5143,4317.8,4317.0,3.2078]
[1756518693423,0.2031,4317.1,4317.0,3.2078]
[1756518693619,0.5143,4317.1,4317.0,3.2078]
[1756518693825,0.5143,4317.1,4317.0,3.9416]
[1756518694630,0.5143,4317.1,4317.0,3.7036]
[1756518694929,0.5143,4317.1,4317.0,3.9416]
[1756518695731,0.5143,4317.1,4317.0,0.4958]
[1756518695932,0.5143,4317.1,4317.0,0.7338]
[1756518696432,0.5143,4317.1,4317.0,0.238]
[1756518697235,0.5143,4317.1,4317.0,0.4337]
[1756518697430,0.5143,4317.1,4317.0,0.7344]
[1756518699633,0.5143,4317.1,4317.0,0.4964]
[1756518700336,0.5143,4317.1,4315.5,0.41901716]
[1756518700337,0.1938,4316.6,4316.0,3.2078]
[1756518700537,0.1938,4316.6,4316.5,0.4939]
[1756518700932,0.1938,4316.6,4316.0,3.2078]
[1756518701138,0.4766,4315.6,4315.5,3.40299716]
[1756518701334,0.4766,4315.6,4315.5,3.70369716]
[1756518701537,0.2828,4315.9,4315.6,0.3007]
[1756518701735,0.2828,4315.9,4315.8,0.1932]
[1756518702042,0.4766,4315.9,4315.8,0.4939]
[1756518703245,0.1938,4315.9,4315.8,0.4939]
[1756518703742,3.6844,4316.3,4316.2,0.4939]
[1756518704148,3.87046475,4316.3,4316.2,0.4939]
[1756518704645,8.10214476,4316.3,4315.6,0.238]
[1756518704843,3.87046475,4316.3,4315.5,0.00199716]
[1756518705044,0.1938,4315.6,4315.5,0.19519716]
[1756518705242,0.4766,4315.6,4315.5,0.49589716]
[1756518705838,0.4766,4315.6,4315.5,0.00199716]
[1756518707250,0.4766,4315.6,4315.5,0.49589716]
[1756518707751,0.4766,4315.6,4315.5,0.00199716]
[1756518712345,0.7146,4315.6,4315.5,0.00199716]
[1756518712847,0.4766,4315.6,4315.5,0.00199716]
[1756518713848,0.4766,4315.6,4315.5,0.19519716]
[1756518714051,0.4766,4315.6,4315.5,0.00199716]
[1756518715944,4.4766,4315.6,4315.5,0.00199716]
[1756518716853,0.4766,4314.6,4314.0,3.2078]
[1756518717054,0.4838,4314.5,4314.1,0.29982587]
[1756518717252,0.41712,4314.6,4314.5,0.4939]
[1756518717949,0.4171,4314.8,4314.6,0.3007]
[1756518718155,0.4171,4314.8,4314.7,0.4939]
[1756518718449,0.4171,4314.8,4314.7,4.4939]
[1756518718651,0.41704,4315.4,4315.3,0.1932]
[1756518718857,0.41704,4315.4,4315.3,3.7017]
[1756518719059,0.41704,4315.4,4315.3,7.7017]
[1756518719260,0.41704,4315.4,4315.3,3.7017]
[1756518719455,0.41704,4315.4,4315.3,7.7017]
[1756518719653,0.41702,4315.6,4315.3,7.401]
[1756518719857,3.6844,4316.6,4316.5,0.1932]
[1756518720158,3.6844,4316.6,4316.5,0.4939]
[1756518720358,4.10132,4316.6,4316.5,0.4939]
[1756518720554,3.62472,4316.6,4316.5,0.4939]
[1756518721153,0.41692,4316.6,4316.5,0.4939]
[1756518721853,0.41692,4316.6,4316.5,4.4939]
[1756518722862,0.89352,4316.6,4316.5,0.4939]
[1756518723061,0.89352,4316.6,4316.5,0.7329]
[1756518723459,0.1938,4316.6,4316.0,3.2078]
[1756518723666,0.1938,4316.6,4315.2,0.41705]
[1756518723667,0.1938,4315.8,4315.7,0.4939]
[1756518723865,0.4766,4315.8,4315.7,0.4939]
[1756518724660,0.8936,4315.8,4315.7,3.7017]
[1756518724965,0.8936,4315.8,4315.7,0.1932]
[1756518725365,0.41702,4315.6,4315.5,0.3007]
[1756518725565,0.41707,4315.0,4314.9,3.401]
[1756518725762,0.61087,4315.0,4314.9,0.4322]
[1756518725967,0.89367,4315.0,4314.9,3.9407]
[1756518726758,0.89367,4315.0,4314.9,3.2078]
[1756518726958,0.4171,4314.7,4314.6,0.5083]
[1756518727464,0.8983,4314.7,4314.6,0.3034]
[1756518727664,0.8983,4314.7,4314.6,0.7473]
[1756518727864,0.4171,4314.7,4314.6,0.7473]
[1756518728269,0.6056,4314.7,4314.6,0.7473]
[1756518728461,0.8983,4314.7,4314.6,0.7473]
[1756518729366,0.4812,4314.7,4313.7,3.2078]
[1756518729571,0.89834,4314.3,4314.2,0.7473]
[1756518730264,0.4812,4314.2,4314.1,0.10662587]
[1756518730470,0.4812,4314.2,4314.1,0.34562587]
[1756518730674,0.4812,4314.2,4314.1,0.10662587]
[1756518730867,0.4812,4314.2,4314.1,0.21652587]
[1756518731066,0.2927,4314.2,4314.1,0.21652587]
[1756518731371,0.4812,4314.2,4314.1,0.21652587]
[1756518732267,0.4812,4314.2,4314.1,0.28522587]
[1756518732968,0.4812,4314.2,4314.1,0.52422587]
[1756518733470,0.4812,4314.2,4314.1,0.21652587]
[1756518733669,0.4812,4314.2,4314.1,0.10662587]
[1756518733875,0.4812,4314.2,4314.1,0.21652587]
[1756518734376,0.4812,4314.2,4314.1,0.10662587]
[1756518736374,0.4812,4314.2,4314.1,0.28522587]
[1756518736877,0.41714,4314.3,4314.2,0.1786]
[1756518737070,0.70984,4314.3,4314.2,0.1786]
[1756518737575,0.89834,4314.3,4314.2,0.1786]
[1756518737976,0.89834,4314.3,4314.1,0.10662587]
[1756518739079,7.689,4314.2,4314.1,0.10662587]
[1756518742070,7.3963,4314.2,4313.1,3.2078]
[1756518742274,0.4812,4313.2,4313.1,3.2078]
[1756518742573,0.4812,4313.2,4313.1,3.3856]
[1756518744274,0.4812,4313.2,4313.1,3.3172]
[1756518744479,0.4812,4313.2,4313.1,3.6236]
[1756518744682,0.2927,4313.2,4313.1,3.6236]
[1756518744975,3.2078,4314.2,4313.1,3.6236]
[1756518745176,0.4812,4313.2,4313.1,0.4158]
[1756518745574,0.4812,4313.0,4312.9,0.4158]
[1756518746280,0.2927,4313.6,4313.0,0.0684]
[1756518746984,0.4812,4313.1,4313.0,0.1778]
[1756518747280,3.2078,4313.7,4313.0,0.1094]
[1756518747480,0.2927,4313.6,4313.1,0.3064]
[1756518747680,0.4812,4313.2,4313.1,0.4158]
[1756518748082,0.4812,4313.2,4313.1,0.3474]
[1756518748883,0.4812,4313.2,4313.1,0.238]
[1756518750185,0.4812,4313.2,4313.1,0.4158]
[1756518750980,0.4812,4313.2,4313.1,0.3474]
[1756518751786,0.4812,4313.2,4313.1,0.238]
[1756518752078,0.4812,4312.4,4312.3,0.238]
[1756518752280,0.4812,4312.4,4312.3,0.3474]
[1756518752680,0.4812,4312.4,4312.3,0.4158]
[1756518753674,0.2927,4312.3,4312.2,33.383]
[1756518753990,0.2927,4312.3,4312.2,33.6894]
[1756518754384,0.2927,4312.3,4312.2,33.383]
[1756518754573,0.2927,4312.3,4312.2,33.621]
[1756518754980,0.2927,4312.3,4312.2,33.383]
[1756518755287,0.2927,4312.3,4312.2,33.6894]
[1756518755786,0.2927,4313.1,4312.3,0.0684]
[1756518756285,0.1885,4312.4,4312.3,0.1778]
[1756518756587,0.4812,4313.1,4313.0,0.1778]
[1756518756791,0.4812,4313.1,4313.0,0.4158]
[1756518757383,0.5074,4313.6,4313.5,0.1796]
[1756518757780,3.2078,4313.7,4313.6,0.0691]
[1756518757985,3.2078,4313.7,4313.6,0.1796]
[1756518758385,0.18945283,4315.0,4313.6,3.3183]
[1756518758587,0.3058,4314.9,4313.7,0.0691]
[1756518758788,0.5074,4314.3,4314.2,0.1796]
[1756518758992,0.5074,4314.3,4314.2,0.4176]
[1756518761193,0.5074,4314.3,4314.2,0.3485]
[1756518761783,0.2016,4314.3,4313.5,3.2769]
[1756518761984,0.5074,4313.7,4313.6,0.4176]
[1756518762689,0.41716,4314.1,4313.6,0.3485]
[1756518762885,0.72294,4314.4,4314.3,0.1105]
[1756518763091,0.72291,4314.6,4314.5,0.1105]
[1756518763291,0.72291,4314.6,4314.5,0.1796]
[1756518763587,0.5074,4314.6,4314.5,0.1796]
[1756518763791,0.41709,4314.9,4314.6,0.0691]
[1756518764090,33.4,4316.3,4314.6,0.0691]
[1756518764091,0.3058,4315.4,4315.3,0.1105]
[1756518764279,0.41703,4315.5,4315.3,0.3485]
[1756518764585,0.92443,4315.5,4315.4,0.1796]
[1756518765385,0.92443,4315.5,4315.4,0.1105]
[1756518767093,0.3058,4315.0,4314.2,3.69405]
[1756518767289,0.5074,4314.4,4314.3,0.4176]
[1756518767484,0.3058,4314.4,4314.3,0.4176]
[1756518767686,0.41709,4314.9,4314.3,0.4176]
[1756518767887,0.41709,4314.9,4314.3,0.238]
[1756518768087,0.5074,4314.8,4314.7,0.1796]
[1756518768396,0.5074,4314.3,4314.2,3.2078]
[1756518768588,0.5074,4314.3,4314.2,3.4458]
[1756518769487,0.5074,4314.3,4314.2,3.6254]
[1756518769793,0.3058,4315.0,4314.3,0.0691]
[1756518770492,0.5074,4314.4,4314.3,0.1796]
[1756518774399,0.3058,4315.0,4314.3,0.1796]
[1756518775194,0.5074,4314.4,4314.3,0.1796]
[1756518775595,0.5074,4314.3,4314.2,3.2078]
[1756518775798,0.5074,4314.3,4314.2,3.4448]
[1756518778091,0.5074,4314.3,4314.2,0.237]
[1756518778293,0.3058,4314.2,4313.9,33.396]
[1756518778493,0.5074,4314.1,4314.0,0.237]
[1756518779002,1.04272,4314.9,4313.9,33.396]
[1756518779003,0.3058,4314.0,4313.9,33.396]
[1756518779499,0.3058,4314.0,4313.9,33.633]
[1756518780002,4.73921,4314.0,4313.5,0.237]
[1756518780193,0.5074,4313.6,4313.5,0.237]
[1756518781600,0.5074,4313.6,4312.6,0.1796]
[1756518781601,0.5074,4312.7,4312.6,0.1796]
[1756518781800,0.5074,4312.7,4312.6,0.4166]
[1756518781994,0.5074,4312.6,4312.3,33.39]
[1756518782195,0.5074,4312.6,4312.4,0.237]
[1756518782394,0.2016,4312.6,4312.4,0.237]
[1756518782595,0.5074,4312.5,4312.4,0.4166]
[1756518782999,0.3058,4313.5,4312.4,3.6244]
[1756518783195,0.3058,4313.6,4312.5,0.0691]
[1756518784009,0.5074,4313.0,4312.9,0.1796]
[1756518784192,0.5074,4313.0,4312.9,0.4166]
[1756518785594,0.5074,4313.0,4311.7,0.4954]
[1756518785595,0.3058,4312.4,4311.7,0.4954]
[1756518785795,0.3058,4313.0,4312.3,0.4954]
[1756518785997,0.2016,4312.5,4312.4,0.4348]
[1756518786199,0.2016,4312.5,4312.4,0.7344]
[1756518786396,0.5074,4312.5,4312.4,0.7344]
[1756518786599,0.3058,4313.6,4312.5,0.2996]
[1756518786798,0.3058,4313.6,4312.8,0.2996]